fUSD/lending_fUSD_20250209
["ID","MTS","AMOUNT","RATE_DAILY","PERIOD"]
[352378624,1739068256385,-500.0,0.00010402,2]
[352378625,1739068256394,-500.0,0.00010402,2]
[352378626,1739068256403,-500.0,0.00010402,2]
[352378627,1739068256412,-500.0,0.00010402,2]
[352378628,1739068256422,-500.0,0.00010402,2]
[352378629,1739068256431,-500.0,0.00010402,2]
[352378630,1739068256440,-513.4556958,0.00010402,2]
[352378631,1739068256450,-500.0,0.00010402,2]
[352378632,1739068256459,-500.0,0.00010402,2]
[352378633,1739068256468,-500.0,0.00010402,2]
[352378634,1739068256478,-500.0,0.00010402,2]
[352378635,1739068256488,-500.0,0.00010402,2]
[352378636,1739068256498,-500.0,0.00010402,2]
[352378637,1739068256508,-500.0,0.00010402,2]
[352378638,1739068256519,-500.0,0.00010402,2]
[352378639,1739068256529,-500.0,0.00010402,2]
[352378640,1739068256539,-500.0,0.00010402,2]
[352378641,1739068256549,-2148.14937,0.00010402,2]
[352378642,1739068256559,-785.18,0.0001041,2]
[352378643,1739068256569,-644.68,0.0001041,2]
[352378644,1739068256579,-646.35,0.0001041,2]
[352378645,1739068256588,-500.0,0.0001041,2]
[352378646,1739068256598,-1506.13,0.0001041,2]
[352378647,1739068256607,-1265.04,0.0001041,2]
[352378648,1739068256616,-500.0,0.0001041,2]
[352378649,1739068256626,-1598.62,0.0001041,2]
[352378650,1739068256635,-1741.99,0.0001041,2]
[352378651,1739068256644,-500.0,0.0001041,2]
[352378652,1739068256654,-500.0,0.0001041,2]
[352378653,1739068256664,-1264.68,0.0001041,2]
[352378654,1739068256673,-1332.83,0.0001041,2]
[352378655,1739068256683,-1408.8,0.0001041,2]
[352378656,1739068256693,-2329.97,0.0001041,2]
[352378657,1739068256702,-1536.78,0.0001041,2]
[352378658,1739068256712,-704.79,0.0001041,2]
[352378659,1739068256722,-500.0,0.0001041,2]
[352378660,1739068256731,-2199.8,0.0001041,2]
[352378661,1739068256741,-846.8,0.0001041,2]
[352378662,1739068256751,-500.0,0.0001041,2]
[352378663,1739068256762,-500.0,0.0001041,2]
[352378664,1739068256772,-500.0,0.0001041,2]
[352378665,1739068256781,-500.0,0.0001041,2]
[352378666,1739068256791,-540.53,0.0001041,2]
[352378667,1739068256800,-500.0,0.0001041,2]
[352378668,1739068256809,-726.76,0.0001041,2]
[352378669,1739068256819,-1126.43,0.0001041,2]
[352378670,1739068256828,-500.0,0.0001041,2]
[352378671,1739068256840,-500.0,0.0001041,2]
[352378672,1739068256850,-228.67440538,0.0001041,2]
[352378673,1739068256860,-500.0,0.0001041,2]
[352378674,1739068256870,-500.0,0.0001041,2]
[352378675,1739068256881,-581.38638093,0.00010438,2]
[352378676,1739068256890,-861.0,0.0001044,2]
[352378677,1739068256900,-1054.0,0.00010445,2]
[352378678,1739068256911,-150.99,0.00010475,2]
[352378679,1739068256924,-2968.89,0.00010475,2]
[352378680,1739068256934,-292.96,0.00010475,2]
[352378681,1739068256943,-1115.17,0.00010475,2]
[352378682,1739068256952,-468.43,0.00010475,2]
[352378683,1739068256962,-9999.99,0.00010475,2]
[352378684,1739068256971,-999.99,0.00010475,2]
[352378685,1739068256981,-150.99,0.00010475,2]
[352378686,1739068256990,-29999.99,0.00010475,2]
[352378687,1739068256999,-29999.99,0.00010475,2]
[352378688,1739068257009,-426.38955346,0.00010487,2]
[352378689,1739068257019,-1000.0,0.00010521,2]
[352378690,1739068257028,-150.0,0.00010527,2]
[352378691,1739068257038,-203.72200959,0.00010528,2]
[352378692,1739068257047,-150.0,0.00010533,2]
[352378693,1739068257056,-500.0,0.00010536,2]
[352378694,1739068257066,-500.0,0.00010537,2]
[352378695,1739068257075,-500.0,0.00010537,2]
[352378696,1739068257085,-500.0,0.00010537,2]
[352378697,1739068257094,-500.0,0.00010537,2]
[352378698,1739068257103,-547.00867477,0.00010537,2]
[352378699,1739068257113,-500.0,0.00010537,2]
[352378700,1739068257122,-500.0,0.00010537,2]
[352378701,1739068257132,-500.0,0.00010537,2]
[352378702,1739068257141,-500.0,0.00010537,2]
[352378703,1739068257151,-500.0,0.00010537,2]
[352378704,1739068257160,-500.0,0.00010537,2]
[352378705,1739068257170,-500.0,0.00010537,2]
[352378706,1739068257180,-500.0,0.00010537,2]
[352378707,1739068257190,-264.69190377,0.00010537,2]
[352378708,1739068257199,-500.0,0.00010537,2]
[352378709,1739068257209,-302.41950984,0.00010537,2]
[352378710,1739068257218,-500.0,0.00010537,2]
[352378711,1739068257227,-500.0,0.00010537,2]
[352378712,1739068257237,-500.0,0.00010537,2]
[352378713,1739068257247,-578.40310998,0.00010537,2]
[352378714,1739068257256,-500.0,0.00010537,2]
[352378715,1739068257268,-500.0,0.00010537,2]
[352378716,1739068257277,-500.0,0.00010537,2]
[352378717,1739068257286,-191.59072333,0.00010537,2]
[352378718,1739068257296,-500.0,0.00010537,2]
[352378719,1739068257305,-500.0,0.00010537,2]
[352378720,1739068257314,-500.0,0.00010537,2]
[352378721,1739068257324,-500.0,0.00010537,2]
[352378722,1739068257334,-458.49937099,0.00010537,2]
[352378723,1739068257344,-166.84490125,0.00010537,2]
[352378724,1739068257536,-613.54695566,0.00010537,2]
[352378725,1739068257547,-500.0,0.00010537,2]
[352378726,1739068257557,-500.0,0.00010537,2]
[352378727,1739068257567,-500.0,0.00010537,2]
[352378728,1739068257578,-500.0,0.00010537,2]
[352378729,1739068257590,-500.0,0.00010537,2]
[352378730,1739068257600,-500.0,0.00010537,2]
[352378731,1739068257611,-501.41301744,0.00010537,2]
[352378732,1739068257621,-577.54043585,0.00010537,2]
[352378733,1739068257631,-500.0,0.00010537,2]
[352378734,1739068257641,-500.0,0.00010537,2]
[352378735,1739068257650,-500.0,0.00010537,2]
[352378736,1739068257660,-500.0,0.00010537,2]
[352378737,1739068257670,-500.0,0.00010537,2]
[352378738,1739068257680,-500.0,0.00010537,2]
[352378739,1739068257690,-500.0,0.00010537,2]
[352378740,1739068257700,-500.0,0.00010537,2]
[352378741,1739068257709,-500.0,0.00010537,2]
[352378742,1739068257719,-500.0,0.00010537,2]
[352378743,1739068257729,-500.0,0.00010537,2]
[352378744,1739068257739,-500.0,0.00010537,2]
[352378745,1739068257748,-500.0,0.00010537,2]
[352378746,1739068257758,-500.0,0.00010537,2]
[352378747,1739068257769,-500.0,0.00010537,2]
[352378748,1739068257779,-500.0,0.00010537,2]
[352378749,1739068257788,-500.0,0.00010537,2]
[352378750,1739068257798,-500.0,0.00010537,2]
[352378751,1739068257808,-500.0,0.00010537,2]
[352378752,1739068257818,-416.58550639,0.00010537,2]
[352378753,1739068257827,-500.0,0.00010537,2]
[352378754,1739068257837,-511.10875086,0.00010537,2]
[352378755,1739068257851,-500.0,0.00010537,2]
[352378756,1739068257860,-500.0,0.00010537,2]
[352378757,1739068257871,-500.0,0.00010537,2]
[352378758,1739068257880,-500.0,0.00010537,2]
[352378759,1739068257893,-500.0,0.00010537,2]
[352378760,1739068257903,-500.0,0.00010537,2]
[352378761,1739068257912,-500.0,0.00010537,2]
[352378762,1739068257923,-500.0,0.00010537,2]
[352378763,1739068257932,-500.0,0.00010537,2]
[352378764,1739068257942,-500.0,0.00010537,2]
[352378765,1739068257951,-500.0,0.00010537,2]
[352378766,1739068257961,-500.0,0.00010537,2]
[352378767,1739068257970,-500.0,0.00010537,2]
[352378768,1739068257980,-500.0,0.00010537,2]
[352378769,1739068257989,-501.30953509,0.00010537,2]
[352378770,1739068257999,-500.0,0.00010537,2]
[352378771,1739068258009,-509.98465882,0.00010537,2]
[352378772,1739068258021,-500.0,0.00010537,2]
[352378773,1739068258030,-500.0,0.00010537,2]
[352378774,1739068258040,-500.0,0.00010537,2]
[352378775,1739068258049,-500.0,0.00010537,2]
[352378776,1739068258059,-500.0,0.00010537,2]
[352378777,1739068258069,-500.0,0.00010537,2]
[352378778,1739068258079,-500.0,0.00010537,2]
[352378779,1739068258088,-500.0,0.00010537,2]
[352378780,1739068258097,-500.0,0.00010537,2]
[352378781,1739068258107,-500.0,0.00010537,2]
[352378782,1739068258116,-500.0,0.00010537,2]
[352378783,1739068258126,-500.0,0.00010537,2]
[352378784,1739068258136,-500.0,0.00010537,2]
[352378785,1739068258145,-500.0,0.00010537,2]
[352378786,1739068258155,-500.0,0.00010537,2]
[352378787,1739068258164,-500.0,0.00010537,2]
[352378788,1739068258174,-500.0,0.00010537,2]
[352378789,1739068258184,-500.0,0.00010537,2]
[352378790,1739068258193,-500.0,0.00010537,2]
[352378791,1739068258203,-500.0,0.00010537,2]
[352378792,1739068258212,-238.65848736,0.00010537,2]
[352378793,1739068258221,-500.0,0.00010537,2]
[352378794,1739068258230,-500.0,0.00010537,2]
[352378795,1739068258239,-500.0,0.00010537,2]
[352378796,1739068258249,-500.0,0.00010537,2]
[352378797,1739068258259,-508.35965847,0.00010537,2]
[352378798,1739068258269,-500.0,0.00010537,2]
[352378799,1739068258279,-504.22017422,0.00010537,2]
[352378800,1739068258288,-500.0,0.00010537,2]
[352378801,1739068258298,-513.74411179,0.00010537,2]
[352378802,1739068258307,-500.0,0.00010537,2]
[352378803,1739068258317,-500.0,0.00010537,2]
[352378804,1739068258326,-500.0,0.00010537,2]
[352378805,1739068258335,-500.0,0.00010537,2]
[352378806,1739068258347,-500.0,0.00010537,2]
[352378807,1739068258356,-500.0,0.00010537,2]
[352378808,1739068258366,-500.0,0.00010537,2]
[352378809,1739068258376,-500.0,0.00010537,2]
[352378810,1739068258385,-500.0,0.00010537,2]
[352378811,1739068258394,-510.6615488,0.00010537,2]
[352378812,1739068258404,-500.0,0.00010537,2]
[352378813,1739068258413,-500.0,0.00010537,2]
[352378814,1739068258423,-500.0,0.00010537,2]
[352378815,1739068258432,-502.18279018,0.00010537,2]
[352378816,1739068258442,-500.0,0.00010537,2]
[352378817,1739068258452,-500.0,0.00010537,2]
[352378818,1739068258461,-238.2392818,0.00010537,2]
[352378819,1739068258471,-1039.13,0.00010537,2]
[352378820,1739068258481,-500.0,0.00010537,2]
[352378821,1739068258490,-500.0,0.00010537,2]
[352378822,1739068258500,-1045.67,0.00010537,2]
[352378823,1739068258511,-500.0,0.00010537,2]
[352378824,1739068258520,-2505.02,0.00010537,2]
[352378825,1739068258529,-500.0,0.00010537,2]
[352378826,1739068258538,-500.0,0.00010537,2]
[352378827,1739068258548,-500.0,0.00010537,2]
[352378828,1739068258558,-785.35,0.00010537,2]
[352378829,1739068258568,-513.90184389,0.00010537,2]
[352378830,1739068258577,-500.0,0.00010537,2]
[352378831,1739068258587,-1090.29,0.00010537,2]
[352378832,1739068258597,-500.0,0.00010537,2]
[352378833,1739068258607,-500.0,0.00010537,2]
[352378834,1739068258616,-1345.79,0.00010537,2]
[352378835,1739068258626,-500.0,0.00010537,2]
[352378836,1739068258636,-508.42212136,0.00010537,2]
[352378837,1739068258646,-500.0,0.00010537,2]
[352378838,1739068258656,-1000.0,0.00010537,2]
[352378839,1739068258665,-500.0,0.00010537,2]
[352378840,1739068258675,-969.66,0.00010537,2]
[352378841,1739068258685,-500.0,0.00010537,2]
[352378842,1739068258695,-500.0,0.00010537,2]
[352378843,1739068258704,-500.0,0.00010537,2]
[352378844,1739068258714,-1750.99,0.00010537,2]
[352378845,1739068258724,-500.0,0.00010537,2]
[352378846,1739068258733,-500.0,0.00010537,2]
[352378847,1739068258742,-1987.42,0.00010537,2]
[352378848,1739068258752,-500.0,0.00010537,2]
[352378849,1739068258762,-500.0,0.00010537,2]
[352378850,1739068258772,-531.10098814,0.00010537,2]
[352378851,1739068258782,-533.37093683,0.00010537,2]
[352378852,1739068258791,-500.0,0.00010537,2]
[352378853,1739068258800,-500.0,0.00010537,2]
[352378854,1739068258809,-500.0,0.00010537,2]
[352378855,1739068258819,-500.0,0.00010537,2]
[352378856,1739068258828,-500.0,0.00010537,2]
[352378857,1739068258839,-500.0,0.00010537,2]
[352378858,1739068258850,-500.0,0.00010537,2]
[352378859,1739068258859,-500.0,0.00010537,2]
[352378860,1739068258869,-500.0,0.00010537,2]
[352378861,1739068258879,-500.0,0.00010537,2]
[352378862,1739068258889,-500.0,0.00010537,2]
[352378863,1739068258899,-500.0,0.00010537,2]
[352378864,1739068258912,-500.0,0.00010537,2]
[352378865,1739068258924,-500.0,0.00010537,2]
[352378866,1739068258932,-500.0,0.00010537,2]
[352378867,1739068258942,-500.0,0.00010537,2]
[352378868,1739068258955,-500.0,0.00010537,2]
[352378869,1739068258972,-500.0,0.00010537,2]
[352378870,1739068258987,-500.0,0.00010537,2]
[352378871,1739068259001,-418.83983581,0.00010537,2]
[352378872,1739068259018,-500.0,0.00010537,2]
[352378873,1739068259033,-500.0,0.00010537,2]
[352378874,1739068259049,-500.0,0.00010538,2]
[352378875,1739068259065,-500.0,0.00010538,2]
[352378876,1739068259077,-500.0,0.00010538,2]
[352378877,1739068259092,-500.0,0.00010538,2]
[352378878,1739068259107,-500.0,0.00010538,2]
[352378879,1739068259122,-500.0,0.00010538,2]
[352378880,1739068259137,-500.0,0.00010538,2]
[352378881,1739068259152,-500.0,0.00010538,2]
[352378882,1739068259167,-500.0,0.00010538,2]
[352378883,1739068259182,-687.79,0.00010538,2]
[352378884,1739068259197,-500.0,0.00010538,2]
[352378885,1739068259210,-500.0,0.00010538,2]
[352378886,1739068259226,-500.0,0.00010538,2]
[352378887,1739068259240,-500.0,0.00010538,2]
[352378888,1739068259254,-500.0,0.00010538,2]
[352378889,1739068259268,-500.0,0.00010538,2]
[352378890,1739068259281,-500.0,0.00010538,2]
[352378891,1739068259297,-500.0,0.00010538,2]
[352378892,1739068259309,-500.0,0.00010538,2]
[352378893,1739068259320,-500.0,0.00010538,2]
[352378894,1739068259336,-940.52,0.00010538,2]
[352378895,1739068259352,-500.0,0.00010538,2]
[352378896,1739068259364,-500.0,0.00010538,2]
[352378897,1739068259377,-500.0,0.00010538,2]
[352378898,1739068259393,-572.54,0.00010538,2]
[352378899,1739068259407,-500.0,0.00010538,2]
[352378900,1739068259420,-500.0,0.00010538,2]
[352378901,1739068259432,-500.0,0.00010538,2]
[352378902,1739068259445,-500.0,0.00010538,2]
[352378903,1739068259457,-713.14,0.00010538,2]
[352378904,1739068259469,-500.0,0.00010538,2]
[352378905,1739068259481,-789.17,0.00010538,2]
[352378906,1739068259494,-500.0,0.00010538,2]
[352378907,1739068259506,-500.0,0.00010538,2]
[352378908,1739068259522,-500.0,0.00010538,2]
[352378909,1739068259535,-500.0,0.00010538,2]
[352378910,1739068259547,-500.0,0.00010538,2]
[352378911,1739068259561,-500.0,0.00010538,2]
[352378912,1739068259572,-500.0,0.00010538,2]
[352378913,1739068259585,-500.0,0.00010538,2]
[352378914,1739068259597,-500.0,0.00010538,2]
[352378915,1739068259610,-466.42937175,0.00010538,2]
[352378916,1739068259623,-500.0,0.00010538,2]
[352378917,1739068259636,-500.0,0.00010538,2]
[352378918,1739068259648,-500.0,0.00010538,2]
[352378919,1739068259661,-604.29,0.00010538,2]
[352378920,1739068259674,-500.0,0.00010538,2]
[352378921,1739068259686,-500.0,0.00010538,2]
[352378922,1739068259699,-500.0,0.00010538,2]
[352378923,1739068259711,-796.85,0.00010538,2]
[352378924,1739068259724,-500.0,0.00010538,2]
[352378925,1739068259736,-704.0,0.00010538,2]
[352378926,1739068259748,-500.0,0.00010538,2]
[352378927,1739068259762,-500.0,0.00010538,2]
[352378928,1739068259775,-500.0,0.00010538,2]
[352378929,1739068259787,-855.137713,0.00010538,2]
[352378930,1739068259799,-878.2,0.00010538,2]
[352378931,1739068259812,-965.48681,0.00010538,2]
[352378932,1739068259824,-500.0,0.00010538,2]
[352378933,1739068259836,-500.0,0.00010538,2]
[352378934,1739068259849,-500.0,0.00010538,2]
[352378935,1739068259862,-500.0,0.00010538,2]
[352378936,1739068259874,-500.0,0.00010538,2]
[352378937,1739068259887,-500.0,0.00010538,2]
[352378938,1739068259900,-500.0,0.00010538,2]
[352378939,1739068259914,-500.0,0.00010538,2]
[352378940,1739068259927,-500.0,0.00010538,2]
[352378941,1739068259942,-500.0,0.00010538,2]
[352378942,1739068259956,-500.0,0.00010538,2]
[352378943,1739068259968,-502.45,0.00010538,2]
[352378944,1739068259981,-500.0,0.00010538,2]
[352378945,1739068259993,-906.91,0.00010538,2]
[352378946,1739068260006,-500.0,0.00010538,2]
[352378947,1739068260020,-520.73,0.00010538,2]
[352378948,1739068260033,-500.0,0.00010538,2]
[352378949,1739068260045,-862.92,0.00010538,2]
[352378950,1739068260058,-850.75,0.00010538,2]
[352378951,1739068260071,-500.0,0.00010538,2]
[352378952,1739068260084,-513.39404381,0.00010538,2]
[352378953,1739068260097,-500.0,0.00010538,2]
[352378954,1739068260109,-632.29,0.00010538,2]
[352378955,1739068260122,-867.75,0.00010538,2]
[352378956,1739068260135,-500.0,0.00010538,2]
[352378957,1739068260147,-500.0,0.00010538,2]
[352378958,1739068260160,-500.0,0.00010538,2]
[352378959,1739068260173,-500.0,0.00010538,2]
[352378960,1739068260185,-500.0,0.00010538,2]
[352378961,1739068260198,-657.74,0.00010538,2]
[352378962,1739068260211,-950.5,0.00010538,2]
[352378963,1739068260223,-500.0,0.00010538,2]
[352378964,1739068260235,-796.41,0.00010538,2]
[352378965,1739068260248,-413.73,0.00010538,2]
[352378966,1739068260261,-500.0,0.00010538,2]
[352378967,1739068260272,-500.0,0.00010538,2]
[352378968,1739068260285,-500.0,0.00010538,2]
[352378969,1739068260296,-500.0,0.00010538,2]
[352378970,1739068260308,-500.0,0.00010538,2]
[352378971,1739068260321,-789.95,0.00010538,2]
[352378972,1739068260333,-500.0,0.00010538,2]
[352378973,1739068260345,-350.96730563,0.00010538,2]
[352378974,1739068260357,-500.0,0.00010538,2]
[352378975,1739068260370,-500.0,0.00010538,2]
[352378976,1739068260383,-500.0,0.00010538,2]
[352378977,1739068260395,-500.0,0.00010538,2]
[352378978,1739068260408,-770.81,0.00010538,2]
[352378979,1739068260420,-1974.36,0.00010538,2]
[352378980,1739068260433,-796.4,0.00010538,2]
[352378981,1739068260444,-594.33,0.00010538,2]
[352378982,1739068260456,-713.04,0.00010538,2]
[352378983,1739068260471,-500.0,0.00010538,2]
[352378984,1739068260483,-500.0,0.00010538,2]
[352378985,1739068260496,-500.0,0.00010538,2]
[352378986,1739068260509,-1895.12,0.00010538,2]
[352378987,1739068260524,-525.89,0.00010538,2]
[352378988,1739068260536,-500.0,0.00010538,2]
[352378989,1739068260549,-2888.1,0.00010538,2]
[352378990,1739068260562,-500.0,0.00010538,2]
[352378991,1739068260575,-1057.6,0.00010538,2]
[352378992,1739068260588,-1387.64,0.00010538,2]
[352378993,1739068260600,-500.0,0.00010538,2]
[352378994,1739068260612,-514.0,0.00010538,2]
[352378995,1739068260625,-1501.18,0.00010538,2]
[352378996,1739068260637,-1053.58,0.00010538,2]
[352378997,1739068260651,-514.54,0.00010538,2]
[352378998,1739068260663,-768.56,0.00010538,2]
[352378999,1739068260676,-535.07,0.00010538,2]
[352379000,1739068260689,-680.69,0.00010538,2]
[352379001,1739068260702,-500.0,0.00010538,2]
[352379002,1739068260714,-1231.64,0.00010538,2]
[352379003,1739068260727,-2192.35,0.00010538,2]
[352379004,1739068260740,-500.0,0.00010538,2]
[352379005,1739068260752,-586.73,0.00010538,2]
[352379006,1739068260766,-1046.17,0.00010538,2]
[352379007,1739068260778,-1813.69,0.00010538,2]
[352379008,1739068260790,-500.0,0.00010538,2]
[352379009,1739068260800,-555.72356102,0.00010538,2]
[352379010,1739068260809,-1640.37,0.00010538,2]
[352379011,1739068261077,-669.76,0.00010538,2]
[352379012,1739068261105,-500.0,0.00010538,2]
[352379013,1739068261114,-1735.55,0.00010538,2]
[352379014,1739068261124,-912.52,0.00010538,2]
[352379015,1739068261134,-500.0,0.00010538,2]
[352379016,1739068261143,-500.0,0.00010538,2]
[352379017,1739068261153,-358.95998745,0.00010538,2]
[352379018,1739068261162,-500.0,0.00010538,2]
[352379019,1739068261171,-1516.41,0.00010538,2]
[352379020,1739068261181,-1011.36,0.00010538,2]
[352379021,1739068261191,-500.0,0.00010538,2]
[352379022,1739068261202,-1292.34,0.00010538,2]
[352379023,1739068261212,-500.0,0.00010538,2]
[352379024,1739068261222,-1086.04,0.00010538,2]
[352379025,1739068261231,-500.0,0.00010538,2]
[352379026,1739068261240,-500.0,0.00010538,2]
[352379027,1739068261250,-788.32,0.00010538,2]
[352379028,1739068261259,-1813.88,0.00010538,2]
[352379029,1739068261270,-2183.54,0.00010538,2]
[352379030,1739068261279,-500.0,0.00010538,2]
[352379031,1739068261289,-798.61,0.00010538,2]
[352379032,1739068261298,-1408.01,0.00010538,2]
[352379033,1739068261307,-500.0,0.00010538,2]
[352379034,1739068261317,-678.49,0.00010538,2]
[352379035,1739068261327,-500.0,0.00010538,2]
[352379036,1739068261338,-1409.7,0.00010538,2]
[352379037,1739068261348,-967.29,0.00010538,2]
[352379038,1739068261357,-500.0,0.00010538,2]
[352379039,1739068261367,-645.64,0.00010538,2]
[352379040,1739068261376,-695.06,0.00010538,2]
[352379041,1739068261386,-951.2,0.00010538,2]
[352379042,1739068261396,-500.0,0.00010538,2]
[352379043,1739068261406,-1002.71,0.00010538,2]
[352379044,1739068261415,-500.0,0.00010538,2]
[352379045,1739068261425,-1894.78,0.00010538,2]
[352379046,1739068261434,-500.0,0.00010538,2]
[352379047,1739068261444,-2146.73,0.00010538,2]
[352379048,1739068261454,-1508.57,0.00010538,2]
[352379049,1739068261463,-3646.49,0.00010538,2]
[352379050,1739068261473,-735.05,0.00010538,2]
[352379051,1739068261482,-2412.9,0.00010538,2]
[352379052,1739068261492,-500.0,0.00010538,2]
[352379053,1739068261502,-749.05,0.00010538,2]
[352379054,1739068261512,-1730.37,0.00010538,2]
[352379055,1739068261522,-984.54,0.00010538,2]
[352379056,1739068261532,-500.0,0.00010538,2]
[352379057,1739068261542,-2918.7,0.00010538,2]
[352379058,1739068261552,-500.0,0.00010538,2]
[352379059,1739068261561,-988.0,0.00010538,2]
[352379060,1739068261571,-967.87,0.00010538,2]
[352379061,1739068261580,-500.0,0.00010538,2]
[352379062,1739068261590,-500.0,0.00010538,2]
[352379063,1739068261599,-500.0,0.00010538,2]
[352379064,1739068261609,-500.0,0.00010538,2]
[352379065,1739068261618,-509.19,0.00010538,2]
[352379066,1739068261628,-500.0,0.00010538,2]
[352379067,1739068261638,-638.52,0.00010538,2]
[352379068,1739068261647,-1138.87,0.00010538,2]
[352379069,1739068261657,-570.46,0.00010538,2]
[352379070,1739068261666,-1633.4,0.00010538,2]
[352379071,1739068261676,-803.83,0.00010538,2]
[352379072,1739068261686,-500.0,0.00010538,2]
[352379073,1739068261695,-500.0,0.00010538,2]
[352379074,1739068261705,-500.0,0.00010538,2]
[352379075,1739068261715,-500.0,0.00010538,2]
[352379076,1739068261724,-1288.74,0.00010538,2]
[352379077,1739068261735,-1711.72,0.00010538,2]
[352379078,1739068261744,-1257.42,0.00010538,2]
[352379079,1739068261754,-500.0,0.00010538,2]
[352379080,1739068261766,-1369.94,0.00010538,2]
[352379081,1739068261775,-633.01,0.00010538,2]
[352379082,1739068261785,-1214.08,0.00010538,2]
[352379083,1739068261795,-630.24,0.00010538,2]
[352379084,1739068261805,-548.7,0.00010538,2]
[352379085,1739068261814,-1405.68,0.00010538,2]
[352379086,1739068261823,-500.0,0.00010538,2]
[352379087,1739068261833,-1452.51,0.00010538,2]
[352379088,1739068261843,-1705.78,0.00010538,2]
[352379089,1739068261855,-500.0,0.00010538,2]
[352379090,1739068261865,-621.33,0.00010538,2]
[352379091,1739068261874,-1951.52,0.00010538,2]
[352379092,1739068261884,-603.4,0.00010538,2]
[352379093,1739068261894,-500.0,0.00010538,2]
[352379094,1739068261905,-500.0,0.00010538,2]
[352379095,1739068261915,-500.0,0.00010538,2]
[352379096,1739068261928,-2275.81,0.00010538,2]
[352379097,1739068261938,-1151.28,0.00010538,2]
[352379098,1739068261947,-500.0,0.00010538,2]
[352379099,1739068261957,-509.14320955,0.00010538,2]
[352379100,1739068261967,-500.0,0.00010538,2]
[352379101,1739068261977,-5115.12,0.00010538,2]
[352379102,1739068261986,-500.0,0.00010538,2]
[352379103,1739068261996,-500.0,0.00010538,2]
[352379104,1739068262005,-500.0,0.00010539,2]
[352379105,1739068262015,-500.0,0.00010539,2]
[352379106,1739068262025,-500.0,0.00010539,2]
[352379107,1739068262035,-500.0,0.00010539,2]
[352379108,1739068262044,-500.0,0.00010539,2]
[352379109,1739068262054,-500.0,0.00010539,2]
[352379110,1739068262065,-569.9835191,0.00010539,2]
[352379111,1739068262075,-511.24981069,0.00010539,2]
[352379112,1739068262085,-500.80372896,0.00010539,2]
[352379113,1739068262094,-500.0,0.00010539,2]
[352379114,1739068262104,-500.0,0.00010539,2]
[352379115,1739068262114,-454.3763876,0.00010539,2]
[352379116,1739068262123,-500.0,0.00010539,2]
[352379117,1739068262133,-500.0,0.00010539,2]
[352379118,1739068262143,-520.71466197,0.00010539,2]
[352379119,1739068262152,-500.0,0.00010539,2]
[352379120,1739068262162,-500.0,0.00010539,2]
[352379121,1739068262172,-500.0,0.00010539,2]
[352379122,1739068262182,-500.0,0.00010539,2]
[352379123,1739068262192,-500.0,0.00010539,2]